fUST/lending_fUST_20260506
["ID","MTS","AMOUNT","RATE_DAILY","PERIOD"]
[421734526,1778079039000,-429.0,0.00010684,2]
[421734527,1778079039000,-429.0,0.00010684,2]
[421734523,1778079039000,-429.0,0.00010684,2]
[421734525,1778079039000,-429.0,0.00010684,2]
[421734524,1778079039000,-429.0,0.00010684,2]
[421734532,1778079039000,-377.7170083,0.00010794,21]
[421734537,1778079039000,-2000.0,0.00010931,2]
[421734544,1778079039000,-2000.0,0.00010931,2]
[421734533,1778079039000,-420.0,0.00010888,2]
[421734534,1778079039000,-352.46768269,0.00010909,2]
[421734535,1778079039000,-2000.0,0.00010931,2]
[421734542,1778079039000,-2000.0,0.00010931,2]
[421734536,1778079039000,-2000.0,0.00010931,2]
[421734538,1778079039000,-2000.0,0.00010931,2]
[421734543,1778079039000,-2000.0,0.00010931,2]
[421734540,1778079039000,-2000.0,0.00010931,2]
[421734539,1778079039000,-2000.0,0.00010931,2]
[421734520,1778079039000,-429.0,0.00010684,2]
[421734545,1778079039000,-1209.0,0.00010931,2]
[421734546,1778079039000,-1050.0,0.00010931,2]
[421734541,1778079039000,-2000.0,0.00010931,2]
[421734512,1778079039000,-429.0,0.00010684,2]
[421734519,1778079039000,-429.0,0.00010684,2]
[421734514,1778079039000,-429.0,0.00010684,2]
[421734548,1778079039000,-1050.0,0.00010931,2]
[421734490,1778079039000,-322.90236235,0.0001,2]
[421734491,1778079039000,-500.0,0.00010109,2]
[421734492,1778079039000,-2000.0,0.00010109,2]
[421734493,1778079039000,-1700.0,0.00010109,2]
[421734496,1778079039000,-151.0,0.00010137,2]
[421734495,1778079039000,-1506.0,0.00010109,2]
[421734497,1778079039000,-300.0,0.00010199,2]
[421734501,1778079039000,-500.0,0.00010383,2]
[421734500,1778079039000,-1680.0,0.00010355,2]
[421734494,1778079039000,-1700.0,0.00010109,2]
[421734505,1778079039000,-666.20941942,0.00010649,2]
[421734504,1778079039000,-167.12318646,0.00010614,2]
[421734503,1778079039000,-151.5,0.00010614,2]
[421734498,1778079039000,-300.0,0.00010199,2]
[421734502,1778079039000,-183.31530936,0.00010575,21]
[421734499,1778079039000,-300.0,0.00010199,2]
[421734517,1778079039000,-429.0,0.00010684,2]
[421734507,1778079039000,-500.0,0.00010657,2]
[421734518,1778079039000,-429.0,0.00010684,2]
[421734506,1778079039000,-2662.17283999,0.00010649,2]
[421734516,1778079039000,-429.0,0.00010684,2]
[421734508,1778079039000,-429.0,0.00010684,2]
[421734509,1778079039000,-429.0,0.00010684,2]
[421734511,1778079039000,-429.0,0.00010684,2]
[421734513,1778079039000,-429.0,0.00010684,2]
[421734510,1778079039000,-429.0,0.00010684,2]
[421734515,1778079039000,-429.0,0.00010684,2]
[421734547,1778079039000,-1050.0,0.00010931,2]
[421734583,1778079039000,-500.0,0.00010958,2]
[421734556,1778079039000,-2000.0,0.00010931,2]
[421734582,1778079039000,-302.0,0.00010958,2]
[421734581,1778079039000,-500.0,0.00010958,2]
[421734586,1778079039000,-500.0,0.00010958,2]
[421734598,1778079039000,-500.0,0.00010958,2]
[421734594,1778079039000,-500.0,0.00010958,2]
[421734589,1778079039000,-258.21970547,0.00010958,2]
[421734585,1778079039000,-500.0,0.00010958,2]
[421734557,1778079039000,-2000.0,0.00010931,2]
[421734596,1778079039000,-500.0,0.00010958,2]
[421734599,1778079039000,-500.0,0.00010958,2]
[421734597,1778079039000,-500.0,0.00010958,2]
[421734587,1778079039000,-500.0,0.00010958,2]
[421734593,1778079039000,-503.99393737,0.00010958,2]
[421734591,1778079039000,-555.12,0.00010958,2]
[421734592,1778079039000,-922.64,0.00010958,2]
[421734595,1778079039000,-500.0,0.00010958,2]
[421734601,1778079039000,-500.0,0.00010958,2]
[421734603,1778079039000,-500.0,0.00010958,2]
[421734600,1778079039000,-501.37612158,0.00010958,2]
[421734605,1778079039000,-872.2,0.00010958,2]
[421734602,1778079039000,-500.0,0.00010958,2]
[421734604,1778079039000,-500.0,0.00010958,2]
[421734607,1778079039000,-601.14,0.00010958,2]
[421734606,1778079039000,-500.0,0.00010958,2]
[421734608,1778079039000,-968.63,0.00010958,2]
[421734609,1778079039000,-500.0,0.00010958,2]
[421734610,1778079039000,-809.84,0.00010958,2]
[421734580,1778079039000,-500.0,0.00010958,2]
[421734578,1778079039000,-501.58541427,0.00010958,2]
[421734588,1778079039000,-500.0,0.00010958,2]
[421734576,1778079039000,-560.75789596,0.00010958,2]
[421734549,1778079039000,-1050.0,0.00010931,2]
[421734550,1778079039000,-1050.0,0.00010931,2]
[421734552,1778079039000,-1050.0,0.00010931,2]
[421734579,1778079039000,-500.0,0.00010958,2]
[421734555,1778079039000,-704.0,0.00010931,2]
[421734554,1778079039000,-1050.0,0.00010931,2]
[421734551,1778079039000,-1050.0,0.00010931,2]
[421734559,1778079039000,-2000.0,0.00010931,2]
[421734569,1778079039000,-500.0,0.00010958,2]
[421734570,1778079039000,-500.0,0.00010958,2]
[421734571,1778079039000,-500.0,0.00010958,2]
[421734558,1778079039000,-2000.0,0.00010931,2]
[421734561,1778079039000,-2000.0,0.00010931,2]
[421734553,1778079039000,-1050.0,0.00010931,2]
[421734563,1778079039000,-2000.0,0.00010931,2]
[421734560,1778079039000,-2000.0,0.00010931,2]
[421734577,1778079039000,-500.0,0.00010958,2]
[421734584,1778079039000,-500.0,0.00010958,2]
[421734574,1778079039000,-500.0,0.00010958,2]
[421734572,1778079039000,-500.0,0.00010958,2]
[421734573,1778079039000,-500.0,0.00010958,2]
[421734575,1778079039000,-519.66,0.00010958,2]
[421734568,1778079039000,-1167.0466,0.00010958,2]
[421734567,1778079039000,-666081.0155888,0.00010931,2]
[421734562,1778079039000,-2000.0,0.00010931,2]
[421734564,1778079039000,-2000.0,0.00010931,2]
[421734566,1778079039000,-500.0,0.00010931,2]
[421734565,1778079039000,-2000.0,0.00010931,2]
[421734620,1778079040000,-501.35544191,0.00010958,2]
[421734630,1778079040000,-500.0,0.00010958,2]
[421734623,1778079040000,-501.57117087,0.00010958,2]
[421734628,1778079040000,-500.0,0.00010958,2]
[421734618,1778079040000,-529.22269963,0.00010958,2]
[421734621,1778079040000,-835.54,0.00010958,2]
[421734624,1778079040000,-1124.47,0.00010958,2]
[421734627,1778079040000,-500.0,0.00010958,2]
[421734619,1778079040000,-501.40581482,0.00010958,2]
[421734612,1778079040000,-500.0,0.00010958,2]
[421734625,1778079040000,-551.34,0.00010958,2]
[421734626,1778079040000,-945.02,0.00010958,2]
[421734629,1778079040000,-1247.2,0.00010958,2]
[421734616,1778079040000,-500.0,0.00010958,2]
[421734613,1778079040000,-500.0,0.00010958,2]
[421734611,1778079040000,-500.0,0.00010958,2]
[421734615,1778079040000,-500.0,0.00010958,2]
[421734614,1778079040000,-766.73,0.00010958,2]
[421734622,1778079040000,-500.0,0.00010958,2]
[421734641,1778079040000,-2658.29,0.00010958,2]
[421734617,1778079040000,-773.86,0.00010958,2]
[421734638,1778079040000,-1041.6,0.00010958,2]
[421734655,1778079040000,-46.56866207,0.00010958,2]
[421734656,1778079040000,-1549.6017491,0.00010958,2]
[421734653,1778079040000,-2000.0,0.00010931,2]
[421734654,1778079040000,-2000.0,0.00010931,2]
[421734652,1778079040000,-1096.18904678,0.00010931,2]
[421734651,1778079040000,-403.81095322,0.00010931,2]
[421734650,1778079040000,-500.0,0.00010931,2]
[421734646,1778079040000,-500.0,0.00010958,2]
[421734647,1778079040000,-5021.58128909,0.00010958,2]
[421734632,1778079040000,-1058.39,0.00010958,2]
[421734645,1778079040000,-2959.8,0.00010958,2]
[421734643,1778079040000,-917.82,0.00010958,2]
[421734635,1778079040000,-500.0,0.00010958,2]
[421734640,1778079040000,-1089.54,0.00010958,2]
[421734634,1778079040000,-1015.99,0.00010958,2]
[421734631,1778079040000,-500.0,0.00010958,2]
[421734639,1778079040000,-2138.76,0.00010958,2]
[421734637,1778079040000,-500.0,0.00010958,2]
[421734633,1778079040000,-500.0,0.00010958,2]
[421734636,1778079040000,-597.71,0.00010958,2]
[421734644,1778079040000,-500.0,0.00010958,2]
[421734669,1778079043000,-2000.0,0.00010931,2]
[421734671,1778079043000,-2000.0,0.00010931,2]
[421734672,1778079043000,-8559.34357715,0.00010958,2]
[421734670,1778079043000,-2000.0,0.00010931,2]
[421734683,1778079046000,-1854.09770792,0.00010931,2]
[421734703,1778079047000,-773.09,0.00010958,2]
[421734701,1778079047000,-500.0,0.00010958,2]
[421734702,1778079047000,-959.25,0.00010958,2]
[421734704,1778079047000,-724.41,0.00010958,2]
[421734700,1778079047000,-1422.76,0.00010958,2]
[421734699,1778079047000,-500.0,0.00010958,2]
[421734696,1778079047000,-500.0,0.00010958,2]
[421734695,1778079047000,-500.0,0.00010958,2]
[421734697,1778079047000,-1663.56,0.00010958,2]
[421734698,1778079047000,-500.0,0.00010958,2]
[421734694,1778079047000,-3163.54,0.00010958,2]
[421734690,1778079047000,-810.81,0.00010958,2]
[421734688,1778079047000,-2000.0,0.00010931,2]
[421734692,1778079047000,-1200.64,0.00010958,2]
[421734693,1778079047000,-500.0,0.00010958,2]
[421734689,1778079047000,-492.15472259,0.00010958,2]
[421734687,1778079047000,-2000.0,0.00010931,2]
[421734686,1778079047000,-1556.77767249,0.00010931,2]
[421734684,1778079047000,-145.90229208,0.00010931,2]
[421734685,1778079047000,-443.22232751,0.00010931,2]
[421734691,1778079047000,-745.62,0.00010958,2]
[421734710,1778079047000,-3955.63,0.00010958,2]
[421734709,1778079047000,-595.17,0.00010958,2]
[421734724,1778079047000,-178.65196947,0.00010958,2]
[421734728,1778079047000,-500.0,0.00010958,2]
[421734727,1778079047000,-500.0,0.00010958,2]
[421734726,1778079047000,-500.0,0.00010958,2]
[421734729,1778079047000,-2609.66037345,0.00010958,2]
[421734725,1778079047000,-1862.07,0.00010958,2]
[421734720,1778079047000,-880.31,0.00010958,2]
[421734721,1778079047000,-501.39034763,0.00010958,2]
[421734719,1778079047000,-1010.64,0.00010958,2]
[421734718,1778079047000,-1099.56279473,0.00010958,2]
[421734716,1778079047000,-500.0,0.00010958,2]
[421734717,1778079047000,-771.13720527,0.00010958,2]
[421734715,1778079047000,-783.13,0.00010958,2]
[421734714,1778079047000,-95.73779472,0.00010958,2]
[421734722,1778079047000,-3552.49,0.00010958,2]
[421734713,1778079047000,-962.97220528,0.00010958,2]
[421734705,1778079047000,-639.75,0.00010958,2]
[421734708,1778079047000,-257.82351441,0.00010958,2]
[421734712,1778079047000,-500.0,0.00010958,2]
[421734706,1778079047000,-1443.8,0.00010958,2]
[421734711,1778079047000,-500.0,0.00010958,2]
[421734723,1778079047000,-1644.05,0.00010958,2]
[421734707,1778079047000,-500.0,0.00010958,2]
[421734745,1778079710000,661.44,8.01e-05,2]
[421734750,1778079929000,46466.64272655,7.6e-05,2]
[421734754,1778079984000,437.223,0.000205,120]
[421734755,1778080013000,-279.60970759,8.953e-05,2]
[421734757,1778080167000,277.72,8.01e-05,2]
[421734835,1778080232000,-300.0,9.311e-05,2]
[421734855,1778080232000,-500.0,9.699e-05,2]
[421734862,1778080232000,-500.0,9.699e-05,2]
[421734861,1778080232000,-500.0,9.699e-05,2]
[421734852,1778080232000,-500.0,9.699e-05,2]
[421734849,1778080232000,-500.0,9.699e-05,2]
[421734847,1778080232000,-205.27528512,9.699e-05,2]
[421734844,1778080232000,-151.0,9.572e-05,2]
[421734841,1778080232000,-151.0,9.476e-05,2]
[421734838,1778080232000,-332.14631858,9.413e-05,2]
[421734864,1778080232000,-500.0,9.699e-05,2]
[421734826,1778080232000,-1200.0,9.129e-05,2]
[421734824,1778080232000,-300.0,9.129e-05,2]
[421734830,1778080232000,-2821.55187065,9.13e-05,2]
[421734828,1778080232000,-705.38796766,9.13e-05,2]
[421734822,1778080232000,-300.0,9.129e-05,2]
[421734820,1778080232000,-300.0,9.129e-05,2]
[421734818,1778080232000,-300.0,9.129e-05,2]
[421734816,1778080232000,-291.44869687,9.089e-05,2]
[421734812,1778080232000,-892.2175002,8.686e-05,2]
[421734814,1778080232000,-5000.0,8.774e-05,2]
[421734833,1778080232000,-6342.14321724,9.13e-05,2]
[421734866,1778080232000,-525.0,9.699e-05,2]
[421734858,1778080232000,-500.0,9.699e-05,2]
[421734871,1778080232000,-500.0,9.699e-05,2]
[421734912,1778080232000,-43308.79856804,9.7e-05,2]
[421734908,1778080232000,-500.0,9.699e-05,2]
[421734907,1778080232000,-500.0,9.699e-05,2]
[421734903,1778080232000,-178.15036819,9.699e-05,2]
[421734904,1778080232000,-500.0,9.699e-05,2]
[421734901,1778080232000,-500.0,9.699e-05,2]
[421734890,1778080232000,-500.0,9.699e-05,2]
[421734899,1778080232000,-500.0,9.699e-05,2]
[421734897,1778080232000,-500.0,9.699e-05,2]
[421734893,1778080232000,-500.0,9.699e-05,2]
[421734888,1778080232000,-500.0,9.699e-05,2]
[421734886,1778080232000,-500.0,9.699e-05,2]
[421734884,1778080232000,-500.0,9.699e-05,2]
[421734895,1778080232000,-500.0,9.699e-05,2]
[421734881,1778080232000,-500.0,9.699e-05,2]
[421734883,1778080232000,-500.0,9.699e-05,2]
[421734879,1778080232000,-500.0,9.699e-05,2]
[421734875,1778080232000,-500.0,9.699e-05,2]
[421734910,1778080232000,-500.0,9.699e-05,2]
[421734873,1778080232000,-500.0,9.699e-05,2]
[421734868,1778080232000,-500.0,9.699e-05,2]
[421734877,1778080232000,-500.0,9.699e-05,2]
[421734892,1778080232000,-500.0,9.699e-05,2]
[421734869,1778080232000,-500.0,9.699e-05,2]
[421735033,1778080238000,-79250.4920102,9.7e-05,2]
[421735101,1778080241000,-279.60970759,9.603e-05,2]
[421735098,1778080241000,-500.0,9.603e-05,2]
[421735252,1778080244000,-1990.70963771,9.603e-05,2]
[421735289,1778080247000,-455.0,9.603e-05,2]
[421735305,1778080876000,-403.56285645,8.249e-05,2]
[421735307,1778080949000,5000.0,8.01e-05,2]
[421735308,1778080971000,2589.2708748,8.01e-05,2]
[421735309,1778081006000,5000.0,8.01e-05,2]
[421735310,1778081029000,5000.0,8.01e-05,2]
[421735311,1778081051000,5000.0,8.01e-05,2]
[421735312,1778081072000,5000.0,8.01e-05,2]
[421735313,1778081094000,5000.0,8.01e-05,2]
[421735314,1778081116000,5000.0,8.01e-05,2]
[421735316,1778081130000,207.0,8.01e-05,2]
[421735454,1778081434000,-5000.0,8.126e-05,2]
[421735456,1778081435000,-300.0,8.52e-05,2]
[421735455,1778081435000,-291.32566087,8.249e-05,2]
[421735457,1778081435000,-210.1243097,8.674e-05,2]
[421735458,1778081435000,-1200.0,9.497e-05,2]
[421735462,1778081435000,-145.44997057,9.499e-05,2]
[421735459,1778081435000,-300.0,9.498e-05,2]
[421735463,1778081435000,-500.0,9.499e-05,2]
[421735460,1778081435000,-300.0,9.498e-05,2]
[421735461,1778081435000,-354.55002943,9.499e-05,2]
[421735465,1778081436000,-500.0,9.499e-05,2]
[421735467,1778081436000,-190.63007363,9.499e-05,2]
[421735466,1778081436000,-475.0,9.499e-05,2]
[421735464,1778081436000,-500.0,9.499e-05,2]
[421735468,1778081436000,-500.0,9.499e-05,2]
[421735470,1778081436000,-500.0,9.499e-05,2]
[421735472,1778081436000,-500.0,9.499e-05,2]
[421735473,1778081436000,-500.0,9.499e-05,2]
[421735475,1778081436000,-500.0,9.499e-05,2]
[421735469,1778081436000,-500.0,9.499e-05,2]
[421735479,1778081436000,-500.0,9.499e-05,2]
[421735478,1778081436000,-500.0,9.499e-05,2]
[421735476,1778081436000,-500.0,9.499e-05,2]
[421735474,1778081436000,-500.0,9.499e-05,2]
[421735477,1778081436000,-500.0,9.499e-05,2]
[421735480,1778081436000,-9669.70681143,9.5e-05,2]
[421735471,1778081436000,-500.0,9.499e-05,2]
[421735489,1778081437000,-250.33562366,9.661e-05,2]
[421735487,1778081437000,-3468.1387928,9.586e-05,2]
[421735486,1778081437000,-181478.32232816,9.5e-05,2]
[421735498,1778081438000,-500.0,0.00010335,2]
[421735496,1778081438000,-500.0,0.00010335,2]
[421735502,1778081438000,-3672.17869373,0.00010405,2]
[421735497,1778081438000,-500.0,0.00010335,2]
[421735492,1778081438000,-825.58710757,0.0001,2]
[421735493,1778081438000,-5000.0,0.0001001,2]
[421735494,1778081438000,-203.81,0.00010018,2]
[421735490,1778081438000,-500.0,9.7e-05,2]
[421735507,1778081438000,-500.0,0.00010676,2]
[421735491,1778081438000,-600.0,9.892e-05,2]
[421735495,1778081438000,-343.76427982,0.00010249,2]
[421735503,1778081438000,-943.0,0.00010447,2]
[421735506,1778081438000,-500.0,0.00010676,2]
[421735500,1778081438000,-500.0,0.00010335,2]
[421735504,1778081438000,-420.0,0.00010448,2]
[421735515,1778081438000,-702.64543136,0.0001079,2]
[421735514,1778081438000,-32433.22334104,0.0001079,2]
[421735512,1778081438000,-500.0,0.00010789,2]
[421735510,1778081438000,-500.0,0.00010676,2]
[421735513,1778081438000,-8087.19703889,0.0001079,2]
[421735508,1778081438000,-500.0,0.00010676,2]
[421735509,1778081438000,-500.0,0.00010676,2]
[421735505,1778081438000,-500.0,0.00010676,2]
[421735501,1778081438000,-805.67231814,0.00010335,2]
[421735499,1778081438000,-500.0,0.00010335,2]
[421735511,1778081438000,-432.0,0.00010676,2]
[421735542,1778081452000,-5487.51070975,0.0001079,2]
[421735551,1778081453000,-537.6845,0.00010878,2]
[421735565,1778081453000,-500.0,0.00010958,2]
[421735555,1778081453000,-76000.0,0.0001089,2]
[421735553,1778081453000,-181.26803928,0.00010878,2]
[421735552,1778081453000,-500.0,0.00010878,2]
[421735548,1778081453000,-445.202766,0.00010878,2]
[421735543,1778081453000,-260.86230765,0.0001079,2]
[421735549,1778081453000,-537.6845,0.00010878,2]
[421735550,1778081453000,-162.380719,0.00010878,2]
[421735545,1778081453000,-1603.0,0.0001079,2]
[421735546,1778081453000,-36833.93778009,0.0001079,2]
[421735544,1778081453000,-6656.57318528,0.0001079,2]
[421735554,1778081453000,-720.0,0.00010881,2]
[421735547,1778081453000,-151.0,0.00010878,2]
[421735556,1778081453000,-557.5788265,0.00010933,2]
[421735564,1778081453000,-500.0,0.00010958,2]
[421735557,1778081453000,-172.252,0.00010957,2]
[421735572,1778081453000,-487.92766375,0.00010958,2]
[421735574,1778081453000,-89.4071033,0.00010958,2]
[421735571,1778081453000,-12.07233625,0.00010958,2]
[421735569,1778081453000,-500.0,0.00010958,2]
[421735570,1778081453000,-1195.23,0.00010958,2]
[421735568,1778081453000,-500.0,0.00010958,2]
[421735567,1778081453000,-211.05763899,0.00010958,2]
[421735563,1778081453000,-226.47644023,0.00010958,2]
[421735562,1778081453000,-500.0,0.00010958,2]
[421735561,1778081453000,-500.0,0.00010958,2]
[421735573,1778081453000,-500.0,0.00010958,2]
[421735559,1778081453000,-500.0,0.00010958,2]
[421735560,1778081453000,-500.0,0.00010958,2]
[421735558,1778081453000,-651.5573,0.00010958,2]
[421735566,1778081453000,-500.0,0.00010958,2]
[421735576,1778081749000,152.0,0.00010828,30]
[421735575,1778081749000,152.0,0.00010828,30]
[421735577,1778081750000,152.0,0.00010828,30]
[421735578,1778081751000,152.0,0.00010828,30]
[421735579,1778081752000,152.0,0.00010828,30]
[421735580,1778081752000,152.0,0.00010832,30]
[421735581,1778081753000,152.0,0.00010832,30]
[421735583,1778081754000,152.0,0.00010835,30]
[421735582,1778081754000,152.0,0.00010832,30]
[421735584,1778081755000,152.0,0.00010835,30]
[421735587,1778082035000,152.0,0.00010836,30]
[421735588,1778082333000,152.0,0.00010837,30]
[421735637,1778082631000,-2255.02768222,8.331e-05,2]
[421735638,1778082631000,-5000.0,8.415e-05,2]
[421735639,1778082631000,-1200.0,8.542e-05,2]
[421735641,1778082631000,-224.0,8.585e-05,2]
[421735642,1778082631000,-300.0,8.758e-05,2]
[421735640,1778082631000,-301.03199758,8.543e-05,2]
[421735644,1778082631000,-300.0,8.758e-05,2]
[421735645,1778082631000,-300.0,8.758e-05,2]
[421735646,1778082631000,-50000.0,9.199e-05,2]
[421735647,1778082631000,-189.96,9.2e-05,2]
[421735648,1778082631000,-210.1243097,9.3e-05,2]
[421735643,1778082631000,-300.0,8.758e-05,2]
[421735711,1778082632000,-188.21,0.00010832,7]
[421735712,1778082632000,-188.21,0.00010832,7]
[421735701,1778082632000,-152.0,0.00010818,2]
[421735700,1778082632000,-668.65185757,0.00010817,2]
[421735694,1778082632000,-621.78829552,0.00010707,2]
[421735695,1778082632000,-163.60367011,0.00010732,2]
[421735696,1778082632000,-500.0,0.00010732,2]
[421735699,1778082632000,-16614.2801764,0.00010789,2]
[421735698,1778082632000,-644.79446246,0.00010762,2]
[421735693,1778082632000,-599.60298507,0.00010652,2]
[421735692,1778082632000,-578.20924308,0.00010597,2]
[421735697,1778082632000,-720.0,0.00010755,2]
[421735714,1778082632000,-188.21,0.00010832,7]
[421735710,1778082632000,-188.21,0.00010828,7]
[421735703,1778082632000,-188.21,0.00010828,7]
[421735705,1778082632000,-188.21,0.00010828,7]
[421735708,1778082632000,-188.21,0.00010828,7]
[421735707,1778082632000,-188.21,0.00010828,7]
[421735704,1778082632000,-188.21,0.00010828,7]
[421735706,1778082632000,-188.21,0.00010828,7]
[421735709,1778082632000,-188.21,0.00010828,7]
[421735718,1778082632000,-188.21,0.00010832,7]
[421735722,1778082632000,-188.21,0.00010832,7]
[421735716,1778082632000,-188.21,0.00010832,7]
[421735726,1778082632000,-152.0,0.00010833,7]
[421735720,1778082632000,-188.21,0.00010832,7]
[421735691,1778082632000,-587.0,0.00010597,2]
[421735702,1778082632000,-188.21,0.00010828,7]
[421735690,1778082632000,-292.00772739,0.00010554,2]
[421735674,1778082632000,-300.0,9.587e-05,2]
[421735689,1778082632000,-151.5,0.00010554,2]
[421735655,1778082632000,-300.0,9.587e-05,2]
[421735653,1778082632000,-180.9,9.4e-05,2]
[421735650,1778082632000,-1680.0,9.396e-05,2]
[421735649,1778082632000,-569.73565977,9.3e-05,2]
[421735667,1778082632000,-300.0,9.587e-05,2]
[421735669,1778082632000,-300.0,9.587e-05,2]
[421735663,1778082632000,-300.0,9.587e-05,2]
[421735659,1778082632000,-300.0,9.587e-05,2]
[421735657,1778082632000,-300.0,9.587e-05,2]
[421735671,1778082632000,-300.0,9.587e-05,2]
[421735661,1778082632000,-300.0,9.587e-05,2]
[421735724,1778082632000,-152.0,0.00010833,7]
[421735665,1778082632000,-300.0,9.587e-05,2]
[421735688,1778082632000,-355.21775714,0.00010543,2]
[421735672,1778082632000,-300.0,9.587e-05,2]
[421735675,1778082632000,-300.0,9.587e-05,2]
[421735677,1778082632000,-294.0,9.634e-05,2]
[421735687,1778082632000,-557.5788265,0.00010542,2]
[421735683,1778082632000,-151.0,0.00010487,2]
[421735686,1778082632000,-339.76813427,0.00010515,2]
[421735682,1778082632000,-537.6845,0.00010487,2]
[421735680,1778082632000,-3530.1775566,0.00010012,2]
[421735685,1778082632000,-537.6845,0.00010487,2]
[421735678,1778082632000,-420.0,9.634e-05,2]
[421735676,1778082632000,-300.0,9.587e-05,2]
[421735684,1778082632000,-445.202766,0.00010487,2]
[421735679,1778082632000,-600.0,9.778e-05,2]
[421735681,1778082632000,-2351.0,0.00010336,2]
[421735673,1778082632000,-300.0,9.587e-05,2]
[421735670,1778082632000,-300.0,9.587e-05,2]
[421735728,1778082632000,-188.21,0.00010835,7]
[421735729,1778082632000,-188.21,0.00010835,7]
[421735767,1778082632000,-404.46460951,0.00010953,2]
[421735766,1778082632000,-500.0,0.00010953,2]
[421735762,1778082632000,-500.0,0.00010953,2]
[421735763,1778082632000,-500.0,0.00010953,2]
[421735768,1778082632000,-500.0,0.00010953,2]
[421735769,1778082632000,-500.0,0.00010953,2]
[421735760,1778082632000,-500.0,0.00010953,2]
[421735765,1778082632000,-500.0,0.00010953,2]
[421735771,1778082632000,-500.0,0.00010953,2]
[421735773,1778082632000,-500.0,0.00010958,2]
[421735774,1778082632000,-500.0,0.00010958,2]
[421735775,1778082632000,-500.0,0.00010958,2]
[421735781,1778082632000,-583.40549908,0.00010958,2]
[421735770,1778082632000,-500.0,0.00010953,2]
[421735779,1778082632000,-500.0,0.00010958,2]
[421735776,1778082632000,-500.0,0.00010958,2]
[421735780,1778082632000,-500.0,0.00010958,2]
[421735730,1778082632000,-188.21,0.00010835,7]
[421735783,1778082632000,-500.0,0.00010958,2]
[421735777,1778082632000,-500.0,0.00010958,2]
[421735772,1778082632000,-500.0,0.00010953,2]
[421735786,1778082632000,-500.0,0.00010958,2]
[421735784,1778082632000,-500.0,0.00010958,2]
[421735785,1778082632000,-500.0,0.00010958,2]
[421735790,1778082632000,-1145.43,0.00010958,2]
[421735789,1778082632000,-500.0,0.00010958,2]
[421735787,1778082632000,-500.0,0.00010958,2]
[421735788,1778082632000,-500.0,0.00010958,2]
[421735778,1778082632000,-500.0,0.00010958,2]
[421735764,1778082632000,-500.0,0.00010953,2]
[421735782,1778082632000,-500.0,0.00010958,2]
[421735761,1778082632000,-500.0,0.00010953,2]
[421735759,1778082632000,-500.0,0.00010953,2]
[421735731,1778082632000,-188.21,0.00010835,7]
[421735732,1778082632000,-152.0,0.00010836,7]
[421735733,1778082632000,-693.3919763,0.00010872,2]
[421735735,1778082632000,-719.04747942,0.00010927,2]
[421735745,1778082632000,-500.0,0.00010953,2]
[421735736,1778082632000,-500.0,0.00010953,2]
[421735739,1778082632000,-500.0,0.00010953,2]
[421735738,1778082632000,-500.0,0.00010953,2]
[421735737,1778082632000,-382.36718564,0.00010953,2]
[421735734,1778082632000,-163.60367011,0.00010915,2]
[421735742,1778082632000,-500.0,0.00010953,2]
[421735741,1778082632000,-500.0,0.00010953,2]
[421735740,1778082632000,-500.0,0.00010953,2]
[421735746,1778082632000,-500.0,0.00010953,2]